[Event "European Online Club-ch-B 2021"]
[Site "Online"]
[Date "2021.03.27"]
[Round "8.13"]
[White "Edouard, Romain"]
[Black "Efimov, Igor"]
[Result "1-0"]
[ECO "A43"]
[WhiteElo "2614"]
[BlackElo "2416"]
[Annotator "ChessBase"]
[PlyCount "103"]
[EventDate "2021.03.27"]
[EventType "team-tourn"]
[EventCountry "NET"]
[SourceTitle "playchess.com"]
[Source "ChessBase"]
[SourceQuality "1"]
[TimeControl "900+5"]

1. d4 {[%emt 0:00:00]} e6 {[%emt 0:00:07]} 2. c4 {[%emt 0:00:03]} c5 {[%emt 0:00:01]} 3. d5 {[%emt 0:00:01]} exd5 {[%emt 0:00:01]} 4. cxd5 {[%emt 0:00:00]} d6 {[%emt 0:00:02]} 5. Nc3 {[%emt 0:00:01]} g6 {[%emt 0:00:01]} 6. e4 {[%emt 0:00:01]} Bg7 {[%emt 0:00:01]} 7. f4 {[%emt 0:00:02]} Ne7 {[%emt 0:00:07]} 8. Nf3 {[%emt 0:00:02]} O-O {[%emt 0:00:02]} 9. Bc4 {[%emt 0:00:07]} Bg4 {[%emt 0:00:02]} 10. O-O {[%emt 0:00:03]} Nd7 {[%emt 0:00:03]} 11. h3 {[%emt 0:00:02]} Bxf3 {[%emt 0:00:03]} 12. Qxf3 {[%emt 0:00:00]} Nb6 {[%emt 0:00:25]} 13. b3 {[%emt 0:00:04]} f5 {[%emt 0:00:13]} 14. Bd2 {[%emt 0:00:06]} fxe4 {[%emt 0:00:04]} 15. Qxe4 {[%emt 0:00:00]} Nf5 {[%emt 0:00:03]} 16. Kh2 {[%emt 0:00:09]} Re8 {[%emt 0:00:05]} 17. Qd3 {[%emt 0:00:05]} Nxc4 {[%emt 0:00:04]} 18. bxc4 {[%emt 0:00:02]} Qf6 {[%emt 0:00:20]} 19. Nb5 {[%emt 0:00:12]} Qd8 {[%emt 0:02:20]} 20. Rae1 {[%emt 0:00:05]} Rxe1 {[%emt 0:00:11]} 21. Rxe1 {[%emt 0:00:03]} a6 {[%emt 0:00:02]} 22. Nc3 {[%emt 0:00:01]} Qd7 {[%emt 0:00:10]} 23. Ne4 {[%emt 0:00:12]} b5 {[%emt 0:00:15]} 24. Ng5 {[%emt 0:00:26]} b4 {[%emt 0:00:07]} 25. Ne6 {[%emt 0:00:27]} a5 {[%emt 0:00:07]} 26. g4 {[%emt 0:00:07]} Nd4 {[%emt 0:00:04]} 27. Nxg7 {[%emt 0:00:01]} Qxg7 {[%emt 0:00:09]} 28. f5 {[%emt 0:00:59]} Rf8 {[%emt 0:01:29]} 29. Bf4 {[%emt 0:00:21]} Qf6 {[%emt 0:00:21]} 30. Qg3 {[%emt 0:00:21]} gxf5 {[%emt 0:03:45]} 31. gxf5+ {[%emt 0:00:00]} Kf7 {[%emt 0:00:03]} 32. Kh1 {[%emt 0:03:43]} Rg8 {[%emt 0:00:44]} 33. Qe3 {[%emt 0:00:22]} Nxf5 {[%emt 0:00:06]} 34. Qe2 {[%emt 0:00:16]} Nd4 {[%emt 0:00:53]} 35. Qe4 {[%emt 0:00:14]} Qh4 {[%emt 0:00:16]} 36. Bxd6 {[%emt 0:00:42]} Qxe4+ {[%emt 0:00:05]} 37. Rxe4 {[%emt 0:00:00]} Nf5 {[%emt 0:00:28]} 38. Bc7 {[%emt 0:00:21]} Ng3+ {[%emt 0:00:11]} 39. Bxg3 {[%emt 0:00:03]} Rxg3 {[%emt 0:00:02]} 40. Rh4 {[%emt 0:00:37]} a4 {[%emt 0:00:25]} 41. Rxh7+ {[%emt 0:00:07]} Kf6 {[%emt 0:00:01]} 42. d6 {[%emt 0:00:40]} a3 {[%emt 0:00:27]} 43. Rc7 {[%emt 0:00:27]} Rxh3+ {[%emt 0:00:18]} 44. Kg2 {[%emt 0:00:04]} Rh5 {[%emt 0:02:21]} 45. Kf3 {[%emt 0:00:23]} Ke6 {[%emt 0:00:06]} 46. d7 {[%emt 0:00:04]} Ke7 {[%emt 0:00:03]} 47. Ke4 {[%emt 0:00:05]} Kd8 {[%emt 0:00:02]} 48. Ra7 {[%emt 0:00:08]} Rh2 {[%emt 0:00:58]} 49. Kd5 {[%emt 0:00:05]} Rxa2 {[%emt 0:00:11]} 50. Kxc5 {[%emt 0:00:33]} b3 {[%emt 0:00:03]} 51. Kc6 {[%emt 0:00:02]} Ke7 {[%emt 0:00:37]} 52. c5 {[%emt 0:00:20]} 1-0

[Event "European Online Club-ch-B 2021"]
[Site "Online"]
[Date "2021.03.27"]
[Round "8.14"]
[White "Bagheri, Amir"]
[Black "Fontaine, Robert"]
[Result "0-1"]
[ECO "D03"]
[WhiteElo "2348"]
[BlackElo "2550"]
[Annotator "ChessBase"]
[PlyCount "82"]
[EventDate "2021.03.27"]
[EventType "team-tourn"]
[EventCountry "NET"]
[SourceTitle "playchess.com"]
[Source "ChessBase"]
[SourceQuality "1"]
[TimeControl "900+5"]

1. d4 {[%emt 0:00:00]} Nf6 {[%emt 0:00:04]} 2. Nf3 {[%emt 0:00:03]} g6 {[%emt 0:00:03]} 3. Bg5 {[%emt 0:00:03]} Bg7 {[%emt 0:00:01]} 4. Nbd2 {[%emt 0:00:02]} d5 {[%emt 0:00:05]} 5. e3 {[%emt 0:00:03]} O-O {[%emt 0:00:02]} 6. Be2 {[%emt 0:00:03]} c6 {[%emt 0:00:11]} 7. O-O {[%emt 0:00:09]} Qb6 {[%emt 0:00:03]} 8. Nb3 {[%emt 0:00:51]} a5 {[%emt 0:00:09]} 9. a4 {[%emt 0:00:32]} Nbd7 {[%emt 0:00:09]} 10. c4 {[%emt 0:00:25]} Re8 {[%emt 0:00:22]} 11. Qc2 {[%emt 0:00:53]} e5 {[%emt 0:00:29]} 12. Rfd1 {[%emt 0:01:18]} exd4 {[%emt 0:00:15]} 13. Nbxd4 {[%emt 0:01:18]} Nc5 {[%emt 0:00:28]} 14. Rac1 {[%emt 0:00:31]} Nce4 {[%emt 0:00:20]} 15. Bxf6 {[%emt 0:00:47]} Nxf6 {[%emt 0:00:16]} 16. h3 {[%emt 0:00:17]} Bd7 {[%emt 0:00:22]} 17. Qb3 {[%emt 0:00:14]} Qxb3 {[%emt 0:01:56]} 18. Nxb3 {[%emt 0:00:04]} Ne4 {[%emt 0:00:02]} 19. Nbd4 {[%emt 0:01:57]} c5 {[%emt 0:00:14]} 20. Nb5 {[%emt 0:00:04]} Bxb5 {[%emt 0:00:02]} 21. cxb5 {[%emt 0:00:06]} Bxb2 {[%emt 0:00:06]} 22. Rc2 {[%emt 0:00:06]} Bg7 {[%emt 0:00:22]} 23. Rxd5 {[%emt 0:00:05]} b6 {[%emt 0:00:26]} 24. Bc4 {[%emt 0:00:23]} Rad8 {[%emt 0:00:07]} 25. Nd2 {[%emt 0:01:08]} Nc3 {[%emt 0:00:28]} 26. Rxd8 {[%emt 0:00:13]} Rxd8 {[%emt 0:00:02]} 27. Bb3 {[%emt 0:00:17]} Kf8 {[%emt 0:01:46]} 28. Kf1 {[%emt 0:00:07]} Ke7 {[%emt 0:00:08]} 29. Ke1 {[%emt 0:00:06]} f5 {[%emt 0:00:08]} 30. Rc1 {[%emt 0:00:16]} Kd6 {[%emt 0:02:12]} 31. Nb1 {[%emt 0:00:22]} c4 {[%emt 0:00:52]} 32. Bxc4 {[%emt 0:00:51]} Nxa4 {[%emt 0:00:03]} 33. Rd1+ {[%emt 0:00:02]} Ke7 {[%emt 0:00:01]} 34. Rxd8 {[%emt 0:00:02]} Kxd8 {[%emt 0:00:01]} 35. Bg8 {[%emt 0:00:07]} Ke7 {[%emt 0:00:08]} 36. Kd2 {[%emt 0:00:53]} h6 {[%emt 0:00:16]} 37. Na3 {[%emt 0:00:10]} Be5 {[%emt 0:01:06]} 38. h4 {[%emt 0:00:27]} Nc5 {[%emt 0:00:30]} 39. Nc4 {[%emt 0:00:26]} Ne4+ {[%emt 0:00:03]} 40. Kc2 {[%emt 0:00:09]} Bc7 {[%emt 0:00:03]} 41. f3 {[%emt 0:00:08]} Nf6 {[%emt 0:00:03]} 0-1

[Event "European Online Club-ch-B 2021"]
[Site "Online"]
[Date "2021.03.27"]
[Round "8.15"]
[White "Sokolov, Andrei"]
[Black "Villegas, Pierre"]
[Result "1-0"]
[ECO "B11"]
[WhiteElo "2516"]
[BlackElo "2367"]
[Annotator "ChessBase"]
[PlyCount "77"]
[EventDate "2021.03.27"]
[EventType "team-tourn"]
[EventCountry "NET"]
[SourceTitle "playchess.com"]
[Source "ChessBase"]
[SourceQuality "1"]
[TimeControl "900+5"]

1. e4 {[%emt 0:00:00]} c6 {[%emt 0:00:03]} 2. Nc3 {[%emt 0:00:05]} d5 {[%emt 0:00:04]} 3. Nf3 {[%emt 0:00:03]} dxe4 {[%emt 0:00:15]} 4. Nxe4 {[%emt 0:00:02]} Nf6 {[%emt 0:00:02]} 5. Nxf6+ {[%emt 0:00:35]} exf6 {[%emt 0:00:04]} 6. Bc4 {[%emt 0:00:38]} Bd6 {[%emt 0:00:11]} 7. Qe2+ {[%emt 0:00:08]} Be7 {[%emt 0:00:03]} 8. d4 {[%emt 0:00:55]} O-O {[%emt 0:00:06]} 9. Be3 {[%emt 0:00:42]} Bd6 {[%emt 0:00:45]} 10. O-O-O {[%emt 0:00:09]} b5 {[%emt 0:00:12]} 11. Bb3 {[%emt 0:00:20]} a5 {[%emt 0:00:30]} 12. c3 {[%emt 0:01:00]} a4 {[%emt 0:00:38]} 13. Bc2 {[%emt 0:00:02]} b4 {[%emt 0:01:50]} 14. cxb4 {[%emt 0:00:19]} a3 {[%emt 0:00:04]} 15. b3 {[%emt 0:00:49]} Na6 {[%emt 0:00:38]} 16. Bd2 {[%emt 0:01:39]} Bxb4 {[%emt 0:01:05]} 17. Rhe1 {[%emt 0:01:40]} Qd6 {[%emt 0:01:10]} 18. Bd3 {[%emt 0:02:23]} Bxd2+ {[%emt 0:00:38]} 19. Rxd2 {[%emt 0:00:45]} Nb4 {[%emt 0:00:11]} 20. Bc4 {[%emt 0:00:06]} Bg4 {[%emt 0:04:20]} 21. h3 {[%emt 0:00:19]} Bh5 {[%emt 0:00:23]} 22. g4 {[%emt 0:00:52]} Bg6 {[%emt 0:00:03]} 23. Nh4 {[%emt 0:01:25]} Rab8 {[%emt 0:02:02]} 24. Nxg6 {[%emt 0:00:51]} hxg6 {[%emt 0:00:03]} 25. Qe4 {[%emt 0:00:14]} Nd5 {[%emt 0:00:34]} 26. Bxd5 {[%emt 0:00:27]} cxd5 {[%emt 0:00:02]} 27. Qd3 {[%emt 0:00:26]} Rfc8+ {[%emt 0:00:05]} 28. Kd1 {[%emt 0:00:09]} Qb4 {[%emt 0:00:28]} 29. Re3 {[%emt 0:00:04]} Rb7 {[%emt 0:00:35]} 30. Ke2 {[%emt 0:00:04]} Rbc7 {[%emt 0:00:03]} 31. Kf1 {[%emt 0:00:07]} Rc1+ {[%emt 0:00:12]} 32. Kg2 {[%emt 0:00:03]} Ra1 {[%emt 0:00:05]} 33. Qe2 {[%emt 0:00:07]} Rcc1 {[%emt 0:00:06]} 34. Rc2 {[%emt 0:00:11]} Rxc2 {[%emt 0:00:10]} 35. Qxc2 {[%emt 0:00:03]} Qxd4 {[%emt 0:00:03]} 36. Re8+ {[%emt 0:00:07]} Kh7 {[%emt 0:00:01]} 37. Qc8 {[%emt 0:00:02]} g5 {[%emt 0:00:01]} 38. Rh8+ {[%emt 0:00:03]} Kg6 {[%emt 0:00:02]} 39. Qf5# {[%emt 0:00:02]} 1-0

[Event "European Online Club-ch-B 2021"]
[Site "Online"]
[Date "2021.03.27"]
[Round "8.16"]
[White "Meylan, Andre"]
[Black "Riff, Jean-Noel"]
[Result "0-1"]
[ECO "B83"]
[WhiteElo "2205"]
[BlackElo "2499"]
[Annotator "ChessBase"]
[PlyCount "58"]
[EventDate "2021.03.27"]
[EventType "team-tourn"]
[EventCountry "NET"]
[SourceTitle "playchess.com"]
[Source "ChessBase"]
[SourceQuality "1"]
[TimeControl "900+5"]

1. e4 {[%emt 0:00:00]} c5 {[%emt 0:00:02]} 2. Nf3 {[%emt 0:00:03]} d6 {[%emt 0:00:02]} 3. d4 {[%emt 0:00:02]} cxd4 {[%emt 0:00:01]} 4. Nxd4 {[%emt 0:00:00]} Nf6 {[%emt 0:00:01]} 5. Nc3 {[%emt 0:00:01]} e6 {[%emt 0:00:01]} 6. Be2 {[%emt 0:00:08]} Be7 {[%emt 0:00:02]} 7. O-O {[%emt 0:00:08]} O-O {[%emt 0:00:03]} 8. Be3 {[%emt 0:00:06]} Nc6 {[%emt 0:00:01]} 9. f4 {[%emt 0:00:10]} e5 {[%emt 0:00:02]} 10. Nxc6 {[%emt 0:00:09]} bxc6 {[%emt 0:00:04]} 11. Kh1 {[%emt 0:00:04]} exf4 {[%emt 0:00:07]} 12. Bxf4 {[%emt 0:00:00]} Be6 {[%emt 0:00:01]} 13. Qd3 {[%emt 0:00:08]} Qb8 {[%emt 0:00:03]} 14. Qg3 {[%emt 0:00:11]} Kh8 {[%emt 0:00:06]} 15. Rad1 {[%emt 0:01:07]} Qxb2 {[%emt 0:00:09]} 16. Rb1 {[%emt 0:02:53]} Qa3 {[%emt 0:00:34]} 17. Rb7 {[%emt 0:01:29]} d5 {[%emt 0:00:03]} 18. exd5 {[%emt 0:01:12]} cxd5 {[%emt 0:00:33]} 19. Be5 {[%emt 0:02:19]} Ne8 {[%emt 0:01:10]} 20. Bd3 {[%emt 0:02:56]} Bf6 {[%emt 0:01:25]} 21. Nb5 {[%emt 0:01:36]} Qa4 {[%emt 0:01:34]} 22. h3 {[%emt 0:01:38]} Qh4 {[%emt 0:00:30]} 23. Qxh4 {[%emt 0:00:26]} Bxh4 {[%emt 0:00:02]} 24. Nd4 {[%emt 0:00:01]} Bf6 {[%emt 0:00:19]} 25. Nxe6 {[%emt 0:00:12]} fxe6 {[%emt 0:00:01]} 26. Bg3 {[%emt 0:00:05]} e5 {[%emt 0:00:13]} 27. Bb5 {[%emt 0:00:03]} Nd6 {[%emt 0:00:02]} 28. Bc6 {[%emt 0:00:07]} Nxb7 {[%emt 0:00:02]} 29. Bxb7 {[%emt 0:00:00]} Rad8 {[%emt 0:00:02]} 0-1

[Event "European Online Club-ch-B 2021"]
[Site "Online"]
[Date "2021.03.27"]
[Round "8.17"]
[White "Santos Latasa, Jaime"]
[Black "Gorodetzky, David"]
[Result "1-0"]
[ECO "E04"]
[WhiteElo "2608"]
[BlackElo "2495"]
[Annotator "ChessBase"]
[PlyCount "97"]
[EventDate "2021.03.27"]
[EventType "team-tourn"]
[EventCountry "NET"]
[SourceTitle "playchess.com"]
[Source "ChessBase"]
[SourceQuality "1"]
[TimeControl "900+5"]

1. d4 {[%emt 0:00:00]} Nf6 {[%emt 0:00:04]} 2. c4 {[%emt 0:00:04]} e6 {[%emt 0:00:03]} 3. Nf3 {[%emt 0:00:02]} d5 {[%emt 0:00:02]} 4. g3 {[%emt 0:00:09]} dxc4 {[%emt 0:00:17]} 5. Bg2 {[%emt 0:00:04]} a6 {[%emt 0:00:01]} 6. Ne5 {[%emt 0:00:12]} c5 {[%emt 0:00:02]} 7. dxc5 {[%emt 0:00:09]} Qxd1+ {[%emt 0:00:36]} 8. Kxd1 {[%emt 0:00:03]} Bxc5 {[%emt 0:00:01]} 9. Nd2 {[%emt 0:00:02]} Ra7 {[%emt 0:00:34]} 10. Ndxc4 {[%emt 0:01:40]} b5 {[%emt 0:00:04]} 11. Na5 {[%emt 0:00:08]} O-O {[%emt 0:01:35]} 12. Bd2 {[%emt 0:00:11]} Bd6 {[%emt 0:01:35]} 13. Nd3 {[%emt 0:00:38]} e5 {[%emt 0:00:07]} 14. e4 {[%emt 0:00:37]} Rd8 {[%emt 0:00:15]} 15. Ke2 {[%emt 0:00:04]} Be6 {[%emt 0:03:35]} 16. Rhc1 {[%emt 0:02:28]} Rad7 {[%emt 0:00:30]} 17. Be1 {[%emt 0:00:11]} h5 {[%emt 0:02:18]} 18. f3 {[%emt 0:00:52]} Ne8 {[%emt 0:01:22]} 19. Rc2 {[%emt 0:00:59]} f6 {[%emt 0:00:31]} 20. Rac1 {[%emt 0:00:29]} Kf7 {[%emt 0:00:42]} 21. Bb4 {[%emt 0:03:23]} g5 {[%emt 0:00:46]} 22. b3 {[%emt 0:00:06]} g4 {[%emt 0:00:10]} 23. f4 {[%emt 0:00:08]} exf4 {[%emt 0:00:12]} 24. gxf4 {[%emt 0:00:03]} f5 {[%emt 0:00:03]} 25. e5 {[%emt 0:00:05]} Be7 {[%emt 0:00:50]} 26. Bxe7 {[%emt 0:00:09]} Rxe7 {[%emt 0:00:03]} 27. Nc5 {[%emt 0:00:07]} Bd5 {[%emt 0:00:17]} 28. Nab7 {[%emt 0:00:29]} Bxb7 {[%emt 0:00:19]} 29. Nxb7 {[%emt 0:00:03]} Rdd7 {[%emt 0:00:07]} 30. Nc5 {[%emt 0:00:12]} Rd8 {[%emt 0:00:02]} 31. Ke3 {[%emt 0:00:15]} Nf6 {[%emt 0:00:17]} 32. Rd2 {[%emt 0:00:13]} Rc8 {[%emt 0:00:12]} 33. Rcc2 {[%emt 0:00:25]} Nbd7 {[%emt 0:00:08]} 34. Nxd7 {[%emt 0:00:59]} Rxc2 {[%emt 0:00:02]} 35. Rxc2 {[%emt 0:00:05]} Nxd7 {[%emt 0:00:06]} 36. Kd4 {[%emt 0:00:11]} Nf8 {[%emt 0:00:04]} 37. Bd5+ {[%emt 0:00:34]} Kg7 {[%emt 0:00:03]} 38. Rc6 {[%emt 0:00:07]} h4 {[%emt 0:00:05]} 39. Rf6 {[%emt 0:00:17]} Rc7 {[%emt 0:00:10]} 40. Rxf5 {[%emt 0:00:04]} Rc2 {[%emt 0:00:02]} 41. Rg5+ {[%emt 0:00:02]} Kh6 {[%emt 0:00:03]} 42. Rxg4 {[%emt 0:00:03]} Rxh2 {[%emt 0:00:01]} 43. e6 {[%emt 0:00:08]} Ng6 {[%emt 0:00:13]} 44. Be4 {[%emt 0:00:35]} Ne7 {[%emt 0:00:06]} 45. f5 {[%emt 0:00:03]} Rf2 {[%emt 0:00:03]} 46. Rxh4+ {[%emt 0:00:18]} Kg5 {[%emt 0:00:02]} 47. Rh7 {[%emt 0:00:02]} Nxf5+ {[%emt 0:00:04]} 48. Bxf5 {[%emt 0:00:03]} Kxf5 {[%emt 0:00:05]} 49. Rf7+ {[%emt 0:00:03]} 1-0

[Event "European Online Club-ch-B 2021"]
[Site "Online"]
[Date "2021.03.27"]
[Round "8.19"]
[White "Matnadze, Ana"]
[Black "Parkhov, Yair"]
[Result "1/2-1/2"]
[ECO "A62"]
[WhiteElo "2421"]
[BlackElo "2407"]
[Annotator "NA"]
[PlyCount "262"]
[EventDate "2021.03.27"]
[EventType "team-tourn"]
[EventCountry "NET"]
[SourceTitle "playchess.com"]
[Source "ChessBase"]
[SourceQuality "1"]
[TimeControl "900+5"]

1. d4 {[%emt 0:00:00]} Nf6 {[%emt 0:00:03]} 2. Nf3 {[%emt 0:00:03]} c5 {[%emt 0:00:01]} 3. d5 {[%emt 0:00:02]} e6 {[%emt 0:00:02]} 4. c4 {[%emt 0:00:02]} exd5 {[%emt 0:00:01]} 5. cxd5 {[%emt 0:00:01]} d6 {[%emt 0:00:01]} 6. Nc3 {[%emt 0:00:02]} g6 {[%emt 0:00:01]} 7. g3 {[%emt 0:00:01]} Bg7 {[%emt 0:00:02]} 8. Bg2 {[%emt 0:00:01]} O-O {[%emt 0:00:01]} 9. O-O {[%emt 0:00:01]} Re8 {[%emt 0:00:01]} 10. Bf4 {[%emt 0:00:05]} Bf5 {[%emt 0:00:22]} 11. Qb3 {[%emt 0:00:36]} Na6 {[%emt 0:01:42]} 12. Nd2 {[%emt 0:00:26]} Nh5 {[%emt 0:01:02]} 13. Be3 {[%emt 0:01:07]} Nb4 {[%emt 0:00:44]} 14. Nde4 {[%emt 0:01:29]} a5 {[%emt 0:01:30]} 15. a3 {[%emt 0:00:16]} a4 {[%emt 0:00:29]} 16. Nxa4 {[%emt 0:01:30]} Nxd5 {[%emt 0:03:11]} 17. Bg5 {[%emt 0:02:24]} Ndf6 {[%emt 0:00:03]} 18. Nac3 {[%emt 0:00:49]} h6 {[%emt 0:01:40]} 19. Nxf6+ {[%emt 0:00:28]} Nxf6 {[%emt 0:00:03]} 20. Bxf6 {[%emt 0:01:04]} Qxf6 {[%emt 0:00:00]} 21. Rfd1 {[%emt 0:00:30]} Rab8 {[%emt 0:01:04]} 22. Qb6 {[%emt 0:00:17]} Qd8 {[%emt 0:00:47]} 23. Rxd6 {[%emt 0:00:36]} Qxb6 {[%emt 0:00:04]} 24. Rxb6 {[%emt 0:00:01]} Bxc3 {[%emt 0:00:05]} 25. bxc3 {[%emt 0:00:03]} Rxe2 {[%emt 0:00:01]} 26. Rxb7 {[%emt 0:00:32]} Rd8 {[%emt 0:00:09]} 27. a4 {[%emt 0:00:32]} Rdd2 {[%emt 0:00:23]} 28. a5 {[%emt 0:01:10]} Rxf2 {[%emt 0:00:06]} 29. Bc6 {[%emt 0:00:03]} Ra2 {[%emt 0:00:38]} 30. Rxa2 {[%emt 0:00:31]} Rxa2 {[%emt 0:00:00]} 31. Ra7 {[%emt 0:00:18]} Be6 {[%emt 0:00:15]} 32. a6 {[%emt 0:00:15]} Bc4 {[%emt 0:00:07]} 33. Ra8+ {[%emt 0:00:06]} Kg7 {[%emt 0:00:03]} 34. Bb7 {[%emt 0:00:25]} g5 {[%emt 0:00:35]} 35. Rc8 {[%emt 0:00:28]} Bxa6 {[%emt 0:00:07]} 36. Bxa6 {[%emt 0:00:03]} Rxa6 {[%emt 0:00:02]} 37. Rxc5 {[%emt 0:00:02]} Ra2 {[%emt 0:00:02]} 38. h3 {[%emt 0:00:17]} Kg6 {[%emt 0:00:06]} 39. Kh1 {[%emt 0:00:03]} h5 {[%emt 0:00:06]} 40. Kg1 {[%emt 0:00:03]} f6 {[%emt 0:00:03]} 41. Kh1 {[%emt 0:00:03]} Rc2 {[%emt 0:00:05]} 42. Kg1 {[%emt 0:00:02]} Kf7 {[%emt 0:00:06]} 43. Rc6 {[%emt 0:00:04]} Kg7 {[%emt 0:00:08]} 44. Rc7+ {[%emt 0:00:04]} Kg6 {[%emt 0:00:01]} 45. Rc5 {[%emt 0:00:02]} f5 {[%emt 0:00:11]} 46. Rc6+ {[%emt 0:00:03]} Kg7 {[%emt 0:00:02]} 47. Kh1 {[%emt 0:00:04]} Rd2 {[%emt 0:00:12]} 48. Kg1 {[%emt 0:00:02]} Kf7 {[%emt 0:00:19]} 49. Kh1 {[%emt 0:00:03]} g4 {[%emt 0:00:09]} 50. hxg4 {[%emt 0:00:04]} hxg4 {[%emt 0:00:00]} 51. Kg1 {[%emt 0:00:03]} Ke7 {[%emt 0:00:02]} 52. Kf1 {[%emt 0:00:03]} Rd3 {[%emt 0:00:05]} 53. Kg2 {[%emt 0:00:05]} Rf3 {[%emt 0:00:16]} 54. c4 {[%emt 0:00:21]} Kd7 {[%emt 0:00:05]} 55. Rf6 {[%emt 0:00:06]} Ke7 {[%emt 0:00:15]} 56. Rc6 {[%emt 0:00:02]} Rc3 {[%emt 0:00:01]} 57. Kf2 {[%emt 0:00:04]} Kf7 {[%emt 0:00:07]} 58. Kg2 {[%emt 0:00:03]} Rc2+ {[%emt 0:00:01]} 59. Kf1 {[%emt 0:00:03]} Ke7 {[%emt 0:00:02]} 60. Kg1 {[%emt 0:00:04]} Ra2 {[%emt 0:00:07]} 61. Kf1 {[%emt 0:00:03]} Kd7 {[%emt 0:00:11]} 62. Rf6 {[%emt 0:00:03]} Ra5 {[%emt 0:00:03]} 63. Ke2 {[%emt 0:00:05]} Ke7 {[%emt 0:00:04]} 64. Rc6 {[%emt 0:00:07]} Ra3 {[%emt 0:00:12]} 65. Kf2 {[%emt 0:00:02]} Rb3 {[%emt 0:00:07]} 66. Kg2 {[%emt 0:00:04]} Re3 {[%emt 0:00:06]} 67. Kf2 {[%emt 0:00:03]} Re5 {[%emt 0:00:06]} 68. Kg2 {[%emt 0:00:06]} Kd7 {[%emt 0:00:02]} 69. Rf6 {[%emt 0:00:08]} Rc5 {[%emt 0:00:03]} 70. Kf2 {[%emt 0:00:07]} Ke7 {[%emt 0:00:01]} 71. Ra6 {[%emt 0:00:06]} Rxc4 {[%emt 0:00:02]} 72. Ke3 {[%emt 0:00:07]} Re4+ {[%emt 0:00:07]} 73. Kf2 {[%emt 0:00:02]} Re6 {[%emt 0:00:03]} 74. Ra7+ {[%emt 0:00:03]} Kf6 {[%emt 0:00:02]} 75. Ra5 {[%emt 0:00:01]} Rb6 {[%emt 0:00:04]} 76. Rc5 {[%emt 0:00:03]} Ke6 {[%emt 0:00:06]} 77. Kg2 {[%emt 0:00:04]} Rb2+ {[%emt 0:00:04]} 78. Kf1 {[%emt 0:00:03]} Rd2 {[%emt 0:00:01]} 79. Ra5 {[%emt 0:00:03]} Rd5 {[%emt 0:00:02]} 80. Ra4 {[%emt 0:00:15]} Ke5 {[%emt 0:00:02]} 81. Ke2 {[%emt 0:00:05]} Rd4 {[%emt 0:00:04]} 82. Ra8 {[%emt 0:00:09]} Re4+ {[%emt 0:00:13]} 83. Kf2 {[%emt 0:00:04]} Rb4 {[%emt 0:00:09]} 84. Re8+ {[%emt 0:00:05]} Kd4 {[%emt 0:00:03]} 85. Rd8+ {[%emt 0:00:05]} Ke4 {[%emt 0:00:04]} 86. Re8+ {[%emt 0:00:03]} Kd3 {[%emt 0:00:02]} 87. Rd8+ {[%emt 0:00:06]} Rd4 {[%emt 0:00:01]} 88. Rf8 {[%emt 0:00:04]} Rd5 {[%emt 0:00:03]} 89. Rb8 {[%emt 0:00:15]} Kd2 {[%emt 0:00:09]} 90. Rc8 {[%emt 0:00:07]} Rd3 {[%emt 0:00:05]} 91. Re8 {[%emt 0:00:03]} Rf3+ {[%emt 0:00:04]} 92. Kg2 {[%emt 0:00:03]} Re3 {[%emt 0:00:02]} 93. Rf8 {[%emt 0:00:07]} Re2+ {[%emt 0:00:07]} 94. Kf1 {[%emt 0:00:04]} Re5 {[%emt 0:00:02]} 95. Kf2 {[%emt 0:00:02]} Kd3 {[%emt 0:00:02]} 96. Rd8+ {[%emt 0:00:04]} Ke4 {[%emt 0:00:02]} 97. Ra8 {[%emt 0:00:03]} Rd5 {[%emt 0:00:08]} 98. Re8+ {[%emt 0:00:04]} Kd4 {[%emt 0:00:03]} 99. Ra8 {[%emt 0:00:02]} Kd3 {[%emt 0:00:09]} 100. Rb8 {[%emt 0:00:05]} Ra5 {[%emt 0:00:20]} 101. Rd8+ {[%emt 0:00:04]} Ke4 {[%emt 0:00:01]} 102. Re8+ {[%emt 0:00:03]} Kd5 {[%emt 0:00:02]} 103. Rd8+ {[%emt 0:00:04]} Ke6 {[%emt 0:00:02]} 104. Re8+ {[%emt 0:00:02]} Kf6 {[%emt 0:00:03]} 105. Rb8 {[%emt 0:00:03]} Ra2+ {[%emt 0:00:03]} 106. Kf1 {[%emt 0:00:03]} Rc2 {[%emt 0:00:17]} 107. Re8 {[%emt 0:00:07]} Kg6 {[%emt 0:00:06]} 108. Re5 {[%emt 0:00:06]} Kg5 {[%emt 0:00:04]} 109. Ra5 {[%emt 0:00:04]} Kf6 {[%emt 0:00:05]} 110. Rb5 {[%emt 0:00:03]} Ke6 {[%emt 0:00:02]} 111. Ra5 {[%emt 0:00:03]} Rd2 {[%emt 0:00:09]} 112. Rb5 {[%emt 0:00:03]} Rd5 {[%emt 0:00:02]} 113. Rb6+ {[%emt 0:00:04]} Ke5 {[%emt 0:00:02]} 114. Ke2 {[%emt 0:00:03]} f4 {[%emt 0:00:07]} 115. gxf4+ {[%emt 0:00:27]} Kxf4 {[%emt 0:00:00]} 116. Kf2 {[%emt 0:00:06]} Rd2+ {[%emt 0:00:03]} 117. Kg1 {[%emt 0:00:09]} Rd4 {[%emt 0:00:12]} 118. Rb3 {[%emt 0:00:06]} Re4 {[%emt 0:00:02]} 119. Kg2 {[%emt 0:00:04]} Re2+ {[%emt 0:00:08]} 120. Kg1 {[%emt 0:00:05]} Kg5 {[%emt 0:00:16]} 121. Ra3 {[%emt 0:00:06]} Kh4 {[%emt 0:00:02]} 122. Rb3 {[%emt 0:00:05]} Re4 {[%emt 0:00:06]} 123. Ra3 {[%emt 0:00:08]} Kg5 {[%emt 0:00:15]} 124. Kg2 {[%emt 0:00:11]} Kf4 {[%emt 0:00:01]} 125. Kg1 {[%emt 0:00:04]} Re3 {[%emt 0:00:03]} 126. Rxe3 {[%emt 0:00:08]} Kxe3 {[%emt 0:00:00]} 127. Kg2 {[%emt 0:00:03]} Kf4 {[%emt 0:00:01]} 128. Kf2 {[%emt 0:00:02]} g3+ {[%emt 0:00:01]} 129. Kg2 {[%emt 0:00:02]} Kg4 {[%emt 0:00:00]} 130. Kg1 {[%emt 0:00:04]} Kh4 {[%emt 0:00:01]} 131. Kg2 {[%emt 0:00:04]} Kg4 {[%emt 0:00:07]} 1/2-1/2